Cogmind - Beta 13 @@@ ROGUE MODE // 2024.04.05 @ 11:08:47 Player: SPRING Result: Destroyed by Y-72 Warden with Railgun Performance ------------- Evolutions (6) 3000 Regions Visited (16) 3200 Robots Destroyed (94) 470 Value Destroyed (2681) 2681 Prototype IDs (6) 120 Alien Tech Used (0) 0 Bonus (583) 583 TOTAL SCORE: 10054 Bonus ------- High Alert Combat Kills 69 Follower Combat Kills 14 Entered DSFs 500 Cogmind --------- Core Integrity 0/1150 Matter 293/300 Energy 47/100 System Corruption 0% Temperature Cool (0) Movement Core (50) Location -4/Upper Caves Parts ------- > --- POWER (2) -------- (None) > --- PROPULSION (5) --- (None) > --- UTILITY (10) ----- Advanced Weight Redist. System Advanced Signal Interpreter Improved Armor Integrity Analyzer Hacking Suite Makeshift System Shield Experimental System Guard > --- WEAPON (2) ------- (None) > --- INVENTORY (5) ---- Transmission Jammer Advanced Shield Generator Component Analysis Suite Peak State ------------ > --- POWER ------------ Neutrino Core > --- PROPULSION ------- Antigrav System Improved Antigrav System > --- UTILITY ---------- Advanced Power Amplifier Advanced Weight Redist. System Advanced Signal Interpreter Improved Armor Integrity Analyzer ECM Suite Hacking Suite Hacking Suite Hacking Suite Makeshift System Shield Experimental System Guard > --- WEAPON ----------- Heavy Machine Gun Great Maul > --- INVENTORY -------- Transmission Jammer Advanced Shield Generator Component Analysis Suite Wave Gun [Rating: 75] Favorites ----------- Power Light Ion Engine Engine Light Ion Engine Power Core Micro Nuclear Core Reactor Micro Antimatter Reactor Propulsion Light Treads Treads Light Treads Leg Aluminum Leg Hover Unit Antigrav System Flight Unit Cesium-ion Thruster Utility Hacking Suite Device Experimental Sensor Array Storage Medium Storage Unit Processor Advanced Signal Interpreter Hackware Hacking Suite Protection Light Armor Plating Weapon Heavy Battle Rifle Energy Gun Wave Gun Energy Cannon Advanced Beam Cannon Ballistic Gun Heavy Battle Rifle Launcher Heavy Missile Launcher Special Weapon Mining Laser Impact Weapon Great Maul Slashing Weapon Chainsword Piercing Weapon Heavy Pick Build | -11 -10 -10 -9 -8 -7 -7 -7 -6 -6 -6 -5 -5 -5 -5 -4 -4 ------- Run | Yrd Mat Min Mat Mat Fac Low Low Fac Low Low Fac Was Fac DSF Fac Upp Slots Evolved 12 | . . . 2 2 2 . . 2 . . 2 . . . 2 . Power 1 | . . . . . . . . . . . 1 . . . . . Propulsion 3 | . . . 1 1 1 . . . . . . . . . . . Utility 8 | . . . 1 1 1 . . 2 . . 1 . . . 2 . Weapon . | . . . . . . . . . . . . . . . . . Parts Attached 149 | 5 13 11 22 27 10 1 2 10 6 1 16 3 . . 9 13 Power 18 | 1 3 2 3 2 1 . . 2 1 . . 1 . . . 2 Engine 9 | 1 3 2 3 . . . . . . . . . . . . . Core 8 | . . . . 2 1 . . 2 1 . . . . . . 2 Reactor 1 | . . . . . . . . . . . . 1 . . . . Propulsion 38 | 2 5 2 9 10 1 . . 1 1 . 5 . . . 1 1 Treads 16 | . 4 2 9 1 . . . . . . . . . . . . Leg 3 | 2 1 . . . . . . . . . . . . . . . Wheel . | . . . . . . . . . . . . . . . . . Hover 4 | . . . . . . . . . . . 2 . . . 1 1 Flight 15 | . . . . 9 1 . . 1 1 . 3 . . . . . Utility 54 | . 3 1 4 8 5 1 1 7 3 1 7 1 . . 7 5 Device 32 | . . 1 1 4 5 1 1 4 2 . 3 1 . . 4 5 Storage 5 | . 1 . 1 1 . . . . . . 1 . . . 1 . Processor 7 | . 2 . . . . . . 1 1 1 . . . . 2 . Hackware 7 | . . . 1 2 . . . 2 . . 2 . . . . . Protection 3 | . . . 1 1 . . . . . . 1 . . . . . Artifact . | . . . . . . . . . . . . . . . . . Weapon 39 | 2 2 6 6 7 3 . 1 . 1 . 4 1 . . 1 5 Energy Gun 3 | . . . . . . . . . . . 1 1 . . . 1 Energy Cannon 6 | . 1 2 3 . . . . . . . . . . . . . Ballistic Gun 15 | 2 1 2 1 4 . . . . 1 . 2 . . . . 2 Ballistic Cannon . | . . . . . . . . . . . . . . . . . Launcher 7 | . . 1 1 1 2 . 1 . . . 1 . . . . . Special Weapon 4 | . . 1 1 2 . . . . . . . . . . . . Impact Weapon 2 | . . . . . . . . . . . . . . . 1 1 Slashing Weapon 1 | . . . . . 1 . . . . . . . . . . . Piercing Weapon 1 | . . . . . . . . . . . . . . . . 1 Special Melee Weapon . | . . . . . . . . . . . . . . . . . Unidentified Prototypes 4 | . . 1 2 . . . . . . . . . . . 1 . Corrupted Parts 1 | . . . . . . . . . . . . 1 . . . . System Corruption 6 | . . . . . . . . . . . . 6 . . . . Parts Lost 59 | . 3 2 8 5 . . 2 4 2 . 13 . . 2 3 15 Power 9 | . 2 . . . . . . 1 1 . 2 . . 1 . 2 Propulsion 17 | . . 1 4 2 . . 1 2 1 . 3 . . . 1 2 Utility 16 | . . . 2 2 . . . . . . 3 . . . 2 7 Weapon 17 | . 1 1 2 1 . . 1 1 . . 5 . . 1 . 4 Highest Loss Streak 12 | . 2 1 3 2 . . 2 3 2 . 12 . . 2 3 5 To Critical Strikes . | . . . . . . . . . . . . . . . . . Average Slot Usage (%) 85 | . 97 99 85 85 100 100 96 83 82 86 74 66 64 64 60 62 Engine 6 | . 13 14 11 5 . . . . . . 3 . . . . . Core 2 | . . . . 3 7 7 7 6 6 6 3 . . . . 2 Treads 13 | . 13 27 27 19 . . . . . . . . . . . . Leg 1 | . 14 . . . . . . . . . . . . . . . Flight 7 | . . . . 13 38 38 35 20 20 20 11 5 5 5 5 . Device 9 | . . 10 10 11 15 15 15 13 9 6 4 11 11 11 10 10 Storage 8 | . 12 14 11 9 7 7 7 6 6 6 4 . . . 4 2 Processor 5 | . 14 3 . . . . . . 3 6 5 5 5 5 13 15 Hackware 10 | . . . 3 5 15 15 15 25 26 26 27 29 29 29 21 20 Energy Cannon 5 | . 4 6 14 6 . . . . . . . . . . . . Ballistic Gun 8 | . 23 20 4 9 5 . . . 2 6 4 . . . . 2 Launcher 2 | . . . 2 . 6 7 6 6 6 6 2 . . . . . Naked Turns . | . . . . . . . . . . . . . . . . . Heaviest Build 100 | 6 18 23 100 97 20 19 22 22 23 22 23 15 15 15 9 28 Greatest Support 83 | 20 40 40 60 83 27 27 29 27 26 23 23 22 22 22 13 32 Greatest Overweight (x) 9 | . . . 9 1 . . . . . . 4 . . . 2 4 Average Overweight (x) . | . . . . . . . . . . . . . . . . . Largest Inventory Capacity 25 | 5 10 10 25 25 8 8 8 8 8 8 8 5 5 5 5 5 Average Capacity 11 | 5 9 10 18 17 8 8 8 8 8 8 7 5 5 5 5 5 Most Carried 18 | 2 10 10 13 18 8 8 8 8 8 7 8 5 5 5 5 5 Average Carried 8 | . 7 9 9 11 7 8 7 7 6 6 6 4 5 5 4 4 Final Capacity 25 | 5 10 10 25 8 8 8 8 8 8 8 5 5 5 5 5 5 Final Carried 13 | 2 10 10 13 6 8 8 8 8 6 7 5 5 5 5 5 3 Class Distribution -------------------- 54% | Mutant 21% | Hacker-Sprinter 18% | Hacker-Mutant Dominant Class ---------------- Mutant | -10/Materials Mutant | -10/Mines Mutant | -9/Materials Mutant | -8/Materials Hacker-Sprinter | -7/Factory Hacker-Sprinter | -7/Lower Caves Hacker-Sprinter | -7/Lower Caves Hacker-Sprinter | -6/Factory Hacker-Sprinter | -6/Lower Caves Hacker-Sprinter | -6/Lower Caves Hacker-Sprinter | -5/Factory Hacker-Sprinter | -5/Waste Hacker-Mutant | -5/Factory Hacker-Mutant | -5/DSF Hacker-Mutant | -4/Factory Hacker-Mutant | -4/Upper Caves Resources | -11 -10 -10 -9 -8 -7 -7 -7 -6 -6 -6 -5 -5 -5 -5 -4 -4 ----------- Run | Yrd Mat Min Mat Mat Fac Low Low Fac Low Low Fac Was Fac DSF Fac Upp Matter Collected 2630 | 254 318 216 396 423 11 128 76 46 122 20 351 . . . . 269 Remotely 25 | . . . . . . 25 . . . . . . . . . . Salvage Created 3181 | 30 475 363 1133 344 56 . 7 55 77 . 288 . . . 26 327 Parts 206 | 1 36 22 73 28 4 . 1 9 7 . 16 . . . . 9 Haulers Intercepted 9 | . 2 . 4 2 1 . . . . . . . . . . . Recyclers Shooed . | . . . . . . . . . . . . . . . . . Parts Field Recycled . | . . . . . . . . . . . . . . . . . Retrieved Matter . | . . . . . . . . . . . . . . . . . Parts Self-Destructed 13 | . . . . . . . . . 6 . . . . . . 7 Prevented 4 | . . . . . . 3 . . . . . . . . . 1 Kills | -11 -10 -10 -9 -8 -7 -7 -7 -6 -6 -6 -5 -5 -5 -5 -4 -4 ------- Run | Yrd Mat Min Mat Mat Fac Low Low Fac Low Low Fac Was Fac DSF Fac Upp Combat Hostiles Destroyed 64 | 1 8 12 23 8 . . 1 2 3 . 3 . . . . 3 Melee 3 | . . . . . . . 1 . . . . . . . . 2 Guns 22 | 1 7 5 4 3 . . . . . . 1 . . . . 1 Cannons 22 | . 1 5 14 2 . . . . . . . . . . . . AOE 17 | . . 2 5 3 . . . 2 3 . 2 . . . . . Classes Destroyed 15 | 1 5 1 4 2 . . 1 . 1 . . . . . . . Worker 4 | . 1 1 1 . . . . . . . 1 . . . . . Builder 4 | . . . 1 . . . . 2 . . 1 . . . . . Hauler 9 | . 2 . 4 2 1 . . . . . . . . . . . Recycler 3 | . . . 2 . . . . . . . 1 . . . . . Operator 6 | . 2 . 2 . 1 . . . . . . . . . 1 . Watcher 5 | . 3 . 2 . . . . . . . . . . . . . Swarmer 17 | . 3 4 7 . . . . . 3 . . . . . . . Cutter 4 | . . . . 4 . . . . . . . . . . . . Grunt 26 | 1 5 7 10 1 . . . . . . . . . . . 2 Brawler 1 | . . . 1 . . . . . . . . . . . . . Sentry 8 | . . . 5 2 . . . . . . . . . . . 1 Hunter 4 | . . . . 1 . . . 2 . . 1 . . . . . Programmer 3 | . . . . . . . 1 . . . 2 . . . . . Samaritan 1 | . . . . . . . . . 1 . . . . . . . Assembled 1 | . . 1 . . . . . . . . . . . . . . Best Kill Streak 8 | 1 4 3 8 6 1 . 1 4 3 . 4 . . . 1 1 Combat Bots Only 5 | 1 3 3 5 5 . . 1 2 3 . 2 . . . . 1 Max Kills in Single Turn 4 | 1 2 2 4 3 1 . 1 2 2 . 3 . . . 1 1 Gunslinging . | . . . . . . . . . . . . . . . . . Exploded 2 | . . 2 2 2 . . . 1 2 . 1 . . . . . Melee 1 | . . . . . . . 1 . . . . . . . . 1 Uniques/NPCs Destroyed . | . . . . . . . . . . . . . . . . . Combat | -11 -10 -10 -9 -8 -7 -7 -7 -6 -6 -6 -5 -5 -5 -5 -4 -4 -------- Run | Yrd Mat Min Mat Mat Fac Low Low Fac Low Low Fac Was Fac DSF Fac Upp Hostile Shots Fired 608 | 1 78 27 103 75 . . 16 50 24 2 82 . . 12 20 118 Missed 187 | . 20 8 17 22 . . 7 26 14 2 27 . . 6 12 26 Damage Taken 7321 | 12 679 295 1126 920 . . 158 406 188 . 1146 . 180 94 157 1960 Core 2219 | . 170 36 119 122 . . 15 123 53 . 269 . 97 36 95 1084 Absorbed by Shields . | . . . . . . . . . . . . . . . . . Regen/Repaired (Parts) 92 | . . . 11 34 . . . . . . 47 . . . . . Core Remaining (%) 71 | 100 . 17 70 77 . . 97 . . 79 . . . 59 . . Volleys Fired 257 | 1 64 23 67 40 2 . 6 7 4 . 31 . . . . 12 Largest 2 | 2 2 2 2 2 2 . 1 1 2 . 2 . . . . 1 Hottest 136 | 40 80 133 136 123 51 . 33 39 72 . 61 . . . . 81 Shots Fired 435 | 2 125 42 122 76 4 . 6 7 6 . 32 . 1 . . 12 Gun 283 | 2 121 24 38 49 4 . . . 2 . 30 . 1 . . 12 Cannon 113 | . 4 13 73 23 . . . . . . . . . . . . Launcher 32 | . . 1 10 2 . . 6 7 4 . 2 . . . . . Special 7 | . . 4 1 2 . . . . . . . . . . . . Kinetic 268 | 2 121 24 38 49 4 . . . 2 . 28 . . . . . Thermal 133 | . 4 17 74 25 . . . . . . . . 1 . . 12 Explosive 32 | . . 1 10 2 . . 6 7 4 . 2 . . . . . Electromagnetic 2 | . . . . . . . . . . . 2 . . . . . Robot Hit Streak 18 | 2 14 14 18 9 12 . 2 3 2 . 14 . . . . 5 Robot Miss Streak 7 | . 7 3 4 2 . . 4 2 1 . 2 . . . . 1 Penetration Max 1 | . . . . 1 . . . . . . 1 . . . . . Secondary Targets . | . . . . . . . . . . . . . . . . . Shots Hit Robots 302 | 2 89 28 73 47 4 . 5 4 4 . 27 . . . 2 17 Core Hits 150 | 2 30 16 42 13 3 . 2 10 13 . 13 . . . . 6 Critical Kills 1 | . . . . . . . . . . . 1 . . . . . Critical Parts Destroyed 4 | . . . . . 1 . . . . . 1 . . . . 2 Critical Strikes 6 | . . . . . 1 . . . . . 2 . . . . 3 Burn 1 | . . . . . . . . . . . . . . . . 1 Destroy 3 | . . . . . 1 . . . . . 2 . . . . . Smash 2 | . . . . . . . . . . . . . . . . 2 Melee Attacks 19 | . . . . . 2 . 3 2 . . . . . . 4 8 Impact 8 | . . . . . . . . . . . . . . . 4 4 Slashing 7 | . . . . . 2 . 3 2 . . . . . . . . Piercing 4 | . . . . . . . . . . . . . . . . 4 Sneak Attacks 2 | . . . . . 1 . . . . . . . . . 1 . Combat Hostiles . | . . . . . . . . . . . . . . . . . Follow-up Attacks . | . . . . . . . . . . . . . . . . . Damage Inflicted 8017 | 22 986 790 1924 1088 129 . 207 483 700 . 821 . . . 147 720 Guns 3018 | 22 906 295 433 525 47 . . . 23 . 526 . . . . 241 Cannons 1467 | . 69 194 937 267 . . . . . . . . . . . . Explosions 2577 | . . 189 539 296 . . 98 483 677 . 295 . . . . . Melee 810 | . . . . . 82 . 109 . . . . . . . 147 472 Ramming 97 | . 11 64 15 . . . . . . . . . . . . 7 Kinetic 2773 | 22 906 295 433 525 47 . . . 23 . 522 . . . . . Thermal 1817 | . 69 303 937 267 . . . . . . . . . . . 241 Explosive 2500 | . . 128 539 296 . . 98 467 677 . 295 . . . . . Electromagnetic 20 | . . . . . . . . 16 . . 4 . . . . . Impact 434 | . . . . . . . . . . . . . . . 147 287 Slashing 191 | . . . . . 82 . 109 . . . . . . . . . Piercing 185 | . . . . . . . . . . . . . . . . 185 Highest Corruption 17 | . . . 4 . . . . 3 3 . 6 17 17 17 . . Average Corruption 4 | . . . 4 . . . . 1 1 . 5 12 17 17 . . Corruption Purged 3 | . . . . . . . . . 3 . . . . . . . Corruption Blocked . | . . . . . . . . . . . . . . . . . Effects 39 | . . . 24 . . . . 3 1 . 5 3 2 1 . . Message Errors 12 | . . . 8 . . . . 1 . . 1 2 . . . . Matter Fused 6 | . . . 1 . . . . 1 . . 3 . . 1 . . Heat Flow Errors 6 | . . . 5 . . . . . . . . . 1 . . . Energy Discharges 5 | . . . 4 . . . . . 1 . . . . . . . Data Loss (minor) 4 | . . . 3 . . . . . . . 1 . . . . . Data Loss (major) 3 | . . . 2 . . . . 1 . . . . . . . . Misfires 2 | . . . 1 . . . . . . . . . 1 . . . Misdirections 1 | . . . . . . . . . . . . 1 . . . . Overload Shots . | . . . . . . . . . . . . . . . . . Overflow Damage 482 | . . 24 14 9 . . 36 1 . . 32 . . . 94 272 Projectiles 11 | . . 8 3 . . . . . . . . . . . . . Explosions 69 | . . 16 11 9 . . . 1 . . 32 . . . . . Melee 402 | . . . . . . . 36 . . . . . . . 94 272 Knockbacks . | . . . . . . . . . . . . . . . . . Impact . | . . . . . . . . . . . . . . . . . Kinetic . | . . . . . . . . . . . . . . . . . Secondary . | . . . . . . . . . . . . . . . . . Self-Inflicted Damage 629 | . . 56 135 119 . . 27 38 . . 71 . 180 . . 3 Shots 15 | . . 2 4 2 . . 1 2 . . 2 . 2 . . . Rammed 21 | . 1 14 3 . . . . . . . . . . . . 3 Targets Rammed 24 | . 3 15 3 . . . . . . . . . . . . 3 Kicked 2 | . 2 . . . . . . . . . . . . . . . Crushed 1 | . . 1 . . . . . . . . . . . . . . Highest Temperature 333 | . 34 228 333 126 4 4 46 13 12 . . . 202 . . 176 Average Temperature 49 | . 11 76 91 42 2 2 3 6 6 . . . 83 . . 91 Received Heat Transfer 1188 | 6 309 60 339 144 . . . 9 81 . . . . 24 27 189 Siege Activations . | . . . . . . . . . . . . . . . . . Robots Corrupted . | . . . . . . . . . . . . . . . . . Combat Hostiles . | . . . . . . . . . . . . . . . . . Parts Fried 1 | . . . . . . . . . . . . . . . 1 . Impact Corruptions 6 | . . . . . . . . . . . . . . . 3 3 Robots Melted . | . . . . . . . . . . . . . . . . . Combat Hostiles . | . . . . . . . . . . . . . . . . . Parts Melted 4 | . . 1 3 . . . . . . . . . . . . . Heat Transferred 3456 | . 148 607 1776 481 . . . . . . . . . . . 444 Parts Sabotaged . | . . . . . . . . . . . . . . . . . Parts Stolen . | . . . . . . . . . . . . . . . . . Parts Stripped . | . . . . . . . . . . . . . . . . . Power Chain Reactions . | . . . . . . . . . . . . . . . . . Alert | -11 -10 -10 -9 -8 -7 -7 -7 -6 -6 -6 -5 -5 -5 -5 -4 -4 ------- Run | Yrd Mat Min Mat Mat Fac Low Low Fac Low Low Fac Was Fac DSF Fac Upp Peak Influence 642 | 20 192 227 642 372 181 . . 384 . . 227 59 151 135 227 . Initial 199 | . 13 21 80 199 168 . . 63 . . 198 34 41 105 60 . Average 192 | 2 47 107 381 239 176 . . 233 . . 106 36 88 108 135 . Maximum Alert Level 2 | . . 1 2 1 . . . 1 . . 1 . . . 1 . Low Security (%) 65 | 100 100 93 10 46 100 . . 41 . . 90 100 100 100 96 . Level 1 21 | . . 6 39 53 . . . 58 . . 9 . . . 3 . Level 2 13 | . . . 49 . . . . . . . . . . . . . Level 3 . | . . . . . . . . . . . . . . . . . Level 4 . | . . . . . . . . . . . . . . . . . Level 5 . | . . . . . . . . . . . . . . . . . High Security . | . . . . . . . . . . . . . . . . . Max Security . | . . . . . . . . . . . . . . . . . Squads Dispatched 20 | . 1 . 4 7 . . . 2 . . 3 . . 1 2 . Investigation 7 | . . . 1 2 . . . 1 . . 2 . . . 1 . Extermination 1 | . . . . . . . . . . . 1 . . . . . Reinforcement 10 | . 1 . 2 4 . . . 1 . . . . . 1 1 . Assault 1 | . . . 1 . . . . . . . . . . . . . Garrison 1 | . . . . 1 . . . . . . . . . . . . Intercept . | . . . . . . . . . . . . . . . . . Searches Triggered . | . . . . . . . . . . . . . . . . . Construction Impeded 1 | . . . . 1 . . . . . . . . . . . . Haulers Reinforced . | . . . . . . . . . . . . . . . . . Active Scanning Responses . | . . . . . . . . . . . . . . . . . Cargo Convoy Interrupts . | . . . . . . . . . . . . . . . . . Stealth | -11 -10 -10 -9 -8 -7 -7 -7 -6 -6 -6 -5 -5 -5 -5 -4 -4 --------- Run | Yrd Mat Min Mat Mat Fac Low Low Fac Low Low Fac Was Fac DSF Fac Upp Distress Signals 5 | . . . 1 1 . . . 2 . . 1 . . . . . Communications Jammed . | . . . . . . . . . . . . . . . . . Distress Signals . | . . . . . . . . . . . . . . . . . Times Spotted 166 | 1 21 13 39 18 . . 4 15 18 4 6 3 . 4 7 13 Peak Tracking Total 12 | 1 5 3 5 12 . . 3 9 9 4 4 3 . 3 4 5 Tactical Retreats 24 | . 4 . 4 2 . . . 3 5 . 1 . . 1 1 3 Traps | -11 -10 -10 -9 -8 -7 -7 -7 -6 -6 -6 -5 -5 -5 -5 -4 -4 ------- Run | Yrd Mat Min Mat Mat Fac Low Low Fac Low Low Fac Was Fac DSF Fac Upp Traps Triggered 6 | . 2 . 1 . . . . 1 . . 2 . . . . . Indirectly . | . . . . . . . . . . . . . . . . . Trap Hack Attempts . | . . . . . . . . . . . . . . . . . Triggered . | . . . . . . . . . . . . . . . . . Disarmed . | . . . . . . . . . . . . . . . . . Reprogrammed . | . . . . . . . . . . . . . . . . . Reused . | . . . . . . . . . . . . . . . . . Traps Extracted . | . . . . . . . . . . . . . . . . . Installed . | . . . . . . . . . . . . . . . . . Triggered 1 | . . . . . . 1 . . . . . . . . . . Machines | -11 -10 -10 -9 -8 -7 -7 -7 -6 -6 -6 -5 -5 -5 -5 -4 -4 ---------- Run | Yrd Mat Min Mat Mat Fac Low Low Fac Low Low Fac Was Fac DSF Fac Upp Machines Disabled 24 | . . 6 3 3 . . . 10 . . . . 2 . . . Max in Single Turn 7 | . . 6 1 1 . . . 7 . . . . 2 . . . Garrison Access 2 | . . . . . . . . 1 . . 1 . . . . . Machines Repaired . | . . . . . . . . . . . . . . . . . Machines Dismantled . | . . . . . . . . . . . . . . . . . Machines Sabotaged . | . . . . . . . . . . . . . . . . . Overloaded Fab Kills . | . . . . . . . . . . . . . . . . . Hacking | -11 -10 -10 -9 -8 -7 -7 -7 -6 -6 -6 -5 -5 -5 -5 -4 -4 --------- Run | Yrd Mat Min Mat Mat Fac Low Low Fac Low Low Fac Was Fac DSF Fac Upp Machines Accessed 47 | . 4 . 9 7 3 1 1 7 . . 11 . 2 . 2 . Terminals 27 | . 2 . 7 3 1 . 1 3 . . 6 . 2 . 2 . Fabricators 3 | . . . . . . . . 2 . . 1 . . . . . Repair Stations 7 | . 1 . 1 2 . . . 1 . . 2 . . . . . Recycling Units 4 | . 1 . . 1 1 . . . . . 1 . . . . . Scanalyzers 2 | . . . 1 1 . . . . . . . . . . . . Garrison Access 3 | . . . . . 1 . . 1 . . 1 . . . . . Total Hacks 155 | . 9 . 27 14 3 2 2 17 . . 61 . 5 . 15 . Successful 89 | . 3 . 13 9 1 2 2 10 . . 41 . 3 . 5 . Failed 66 | . 6 . 14 5 2 . . 7 . . 20 . 2 . 10 . Catastrophic 10 | . 1 . 4 1 1 . . . . . 2 . . . 1 . Database Lockouts . | . . . . . . . . . . . . . . . . . Manual 79 | . 5 . 10 5 1 2 2 6 . . 31 . 4 . 13 . Terminals 106 | . 6 . 16 6 1 . 2 9 . . 46 . 5 . 15 . Fabricators 5 | . . . . . . . . 3 . . 2 . . . . . Repair Stations 18 | . 1 . 2 5 . . . 2 . . 8 . . . . . Recycling Units 5 | . 2 . . 1 1 . . . . . 1 . . . . . Scanalyzers 11 | . . . 9 2 . . . . . . . . . . . . Garrison Access 8 | . . . . . 1 . . 3 . . 4 . . . . . Terminal Hacks 55 | . 1 . 3 2 . 2 2 6 . . 31 . 3 . 5 . Record 14 | . . . . . . 2 2 1 . . 9 . . . . . Part Schematic 5 | . . . . . . . . 2 . . 3 . . . . . Open DSF 1 | . . . . . . . . . . . . . 1 . . . Level Access Points 1 | . . . . . . . . . . . 1 . . . . . Branch Access Points 1 | . . . . . . . . . . . 1 . . . . . Emergency Access Points 1 | . . . . . . . . . . . 1 . . . . . Terminal Index 3 | . . . . . . . . . . . 1 . 1 . 1 . Fabricator Index 2 | . . . . . . . . . . . 1 . 1 . . . Alert Level 7 | . 1 . . 1 . . . . . . 4 . . . 1 . Unreport Threat 2 | . . . . . . . . 1 . . 1 . . . . . Locate Traps 2 | . . . . . . . . . . . 2 . . . . . Dispatch Records 2 | . . . 1 . . . . . . . 1 . . . . . Surveillance Status 1 | . . . . . . . . . . . 1 . . . . . Recall Investigation 4 | . . . 1 . . . . 1 . . 1 . . . 1 . Recall Reinforcements 3 | . . . . 1 . . . 1 . . . . . . 1 . Hauler Manifests 1 | . . . . . . . . . . . 1 . . . . . Registered Prototypes 1 | . . . 1 . . . . . . . . . . . . . Zone Layout 4 | . . . . . . . . . . . 3 . . . 1 . Fabricator Hacks 4 | . . . . . . . . 2 . . 2 . . . . . Load Schematic 2 | . . . . . . . . 1 . . 1 . . . . . Build 2 | . . . . . . . . 1 . . 1 . . . . . Repair Station Hacks 13 | . . . 2 4 . . . 1 . . 6 . . . . . Scan Component 7 | . . . 1 2 . . . 1 . . 3 . . . . . Repair 5 | . . . 1 2 . . . . . . 2 . . . . . Refit 1 | . . . . . . . . . . . 1 . . . . . Recycling Unit Hacks 5 | . 2 . . 1 1 . . . . . 1 . . . . . Report Inventory 3 | . 1 . . 1 . . . . . . 1 . . . . . Retrieve Components 2 | . 1 . . . 1 . . . . . . . . . . . Scanalyzer 10 | . . . 8 2 . . . . . . . . . . . . Insert Component 5 | . . . 4 1 . . . . . . . . . . . . Analyze 5 | . . . 4 1 . . . . . . . . . . . . Garrison Access Hacks 2 | . . . . . . . . 1 . . 1 . . . . . Seal Access 2 | . . . . . . . . 1 . . 1 . . . . . Unauthorized Hacks . | . . . . . . . . . . . . . . . . . Terminals . | . . . . . . . . . . . . . . . . . Fabricators . | . . . . . . . . . . . . . . . . . Repair Stations . | . . . . . . . . . . . . . . . . . Recycling Units . | . . . . . . . . . . . . . . . . . Scanalyzers . | . . . . . . . . . . . . . . . . . Garrison Access . | . . . . . . . . . . . . . . . . . Data Cores Recovered 2 | . 1 . . . 1 . . . . . . . . . . . Used . | . . . . . . . . . . . . . . . . . Hacking Detections 33 | . 2 . 7 5 3 . . 5 . . 8 . 1 . 2 . Full Trace Events 5 | . . . 2 . . . . 1 . . 1 . . . 1 . Feedback Events 1 | . . . . . . . . . . . . . . . 1 . Hackware Fried 1 | . . . . . . . . . . . . . . . 1 . Feedback Blocked . | . . . . . . . . . . . . . . . . . Robot Schematics Acquired . | . . . . . . . . . . . . . . . . . Robots Built . | . . . . . . . . . . . . . . . . . Authchips . | . . . . . . . . . . . . . . . . . Time . | . . . . . . . . . . . . . . . . . Total Robot Build Rating . | . . . . . . . . . . . . . . . . . Part Schematics Acquired 9 | . . . 3 1 . . . 2 . . 3 . . . . . Parts Built 1 | . . . . . . . . 1 . . . . . . . . Authchips . | . . . . . . . . . . . . . . . . . Time 240 | . . . . . . . . 134 . . 106 . . . . . Total Part Build Rating 4 | . . . . . . . . 4 . . . . . . . . Parts Repaired 5 | . . . 1 2 . . . . . . 2 . . . . . Time 242 | . . . 108 76 . . . . . . 58 . . . . . Parts Recycled . | . . . . . . . . . . . . . . . . . Recycled Matter . | . . . . . . . . . . . . . . . . . Retrieved Matter . | . . . . . . . . . . . . . . . . . Retrieved Components 12 | . 6 . . . 6 . . . . . . . . . . . Parts Scanalyzed 4 | . . . 3 1 . . . . . . . . . . . . Part Schematics Acquired 4 | . . . 3 1 . . . . . . . . . . . . Parts Damaged . | . . . . . . . . . . . . . . . . . Bothacking | -11 -10 -10 -9 -8 -7 -7 -7 -6 -6 -6 -5 -5 -5 -5 -4 -4 ------------ Run | Yrd Mat Min Mat Mat Fac Low Low Fac Low Low Fac Was Fac DSF Fac Upp Used RIF Installer . | . . . . . . . . . . . . . . . . . Robots Hacked . | . . . . . . . . . . . . . . . . . Non-combat . | . . . . . . . . . . . . . . . . . Combat . | . . . . . . . . . . . . . . . . . Robot Hacks Applied . | . . . . . . . . . . . . . . . . . Relay Couplers Released . | . . . . . . . . . . . . . . . . . Fabnet Peak Effective % . | . . . . . . . . . . . . . . . . . Robots Rewired . | . . . . . . . . . . . . . . . . . Allies Hacked . | . . . . . . . . . . . . . . . . . Hacks Repelled . | . . . . . . . . . . . . . . . . . Allies | -11 -10 -10 -9 -8 -7 -7 -7 -6 -6 -6 -5 -5 -5 -5 -4 -4 -------- Run | Yrd Mat Min Mat Mat Fac Low Low Fac Low Low Fac Was Fac DSF Fac Upp Total Allies 4 | . . 3 . . . . . . . . . 1 . . . . Largest Group 3 | . . 3 . . . . . . . . . 1 . . . . Highest-Rated Group 40 | . . 40 . . . . . . . . . 31 . . . . Highest-Rated Ally 31 | . . 16 . . . . . . . . . 31 . . . . Total Orders . | . . . . . . . . . . . . . . . . . Ally Attacks 25 | . . 19 . . . . . . . . . 6 . . . . Total Damage 309 | . . 185 . . . . . . . . . 124 . . . . Kills 3 | . . 3 . . . . . . . . . . . . . . Allies Corrupted . | . . . . . . . . . . . . . . . . . Allies Melted . | . . . . . . . . . . . . . . . . . Intel | -11 -10 -10 -9 -8 -7 -7 -7 -6 -6 -6 -5 -5 -5 -5 -4 -4 ------- Run | Yrd Mat Min Mat Mat Fac Low Low Fac Low Low Fac Was Fac DSF Fac Upp Robot Analysis Total . | . . . . . . . . . . . . . . . . . Derelict Logs Recovered 10 | . . 2 . . . 2 2 . . 2 . . . . . 2 Drone Launches . | . . . . . . . . . . . . . . . . . Drone Recoveries . | . . . . . . . . . . . . . . . . . Exploration | -11 -10 -10 -9 -8 -7 -7 -7 -6 -6 -6 -5 -5 -5 -5 -4 -4 ------------- Run | Yrd Mat Min Mat Mat Fac Low Low Fac Low Low Fac Was Fac DSF Fac Upp Turns Passed 7666 | 79 1077 1087 1630 653 254 165 304 300 293 95 541 46 49 30 363 700 Spaces Moved 8312 | 65 612 588 604 440 685 656 1035 709 618 307 708 96 111 70 384 624 Core 207 | 15 . . 1 . . . . . . . 2 . . . 2 187 Treads 1585 | . 280 588 603 114 . . . . . . . . . . . . Legs 382 | 50 332 . . . . . . . . . . . . . . . Wheels . | . . . . . . . . . . . . . . . . . Hover 526 | . . . . . . . . . . . 86 . . . 3 437 Flight 5612 | . . . . 326 685 656 1035 709 618 307 620 96 111 70 379 . Fastest Speed 17 | 50 120 160 160 20 23 23 17 20 26 29 29 40 40 40 40 50 Average Speed 68 | 103 138 160 219 91 23 23 23 28 28 29 34 40 40 40 40 92 Slowest Speed 500 | 120 160 160 500 240 23 23 26 32 29 29 295 40 40 40 150 250 Overloaded Moves 203 | . . . . 22 . . 10 2 166 . 3 . . . . . Propulsion Burnouts . | . . . . . . . . . . . . . . . . . Robots Hopped 2 | . . . . . . . . . . . 2 . . . . . Cave-ins Triggered . | . . . . . . . . . . . . . . . . . Exploration Rate (%) 49 | 5 79 94 54 43 18 83 90 17 68 35 18 83 2 61 9 82 Regions Visited 16 Branch Regions 6 Pre-discovered Areas 5 | . . . . . . 1 2 . . 2 . . . . . . Known Exits Taken 3 | . . . . . . . . . . 1 . . 1 . 1 . Unknown Exits Taken 10 | 1 1 1 1 1 1 1 1 1 1 . . . . . . . Scrap Searched 18 | . . 1 . . . 4 5 . 3 1 . . . . . 4 Spaces Dug 5 | . . . 1 2 1 . . . . . . . . . 1 . Terrain Destroyed 399 | . . 27 88 13 1 . 60 76 54 . 33 . 46 . 1 . Melee 2 | . . . . . 1 . . . . . . . . . 1 . Projectile 9 | . . 3 4 2 . . . . . . . . . . . . AOE 388 | . . 24 84 11 . . 60 76 54 . 33 . 46 . . . Terrain Rammed . | . . . . . . . . . . . . . . . . . Walls Destroyed . | . . . . . . . . . . . . . . . . . Machines Disabled . | . . . . . . . . . . . . . . . . . Actions | -11 -10 -10 -9 -8 -7 -7 -7 -6 -6 -6 -5 -5 -5 -5 -4 -4 --------- Run | Yrd Mat Min Mat Mat Fac Low Low Fac Low Low Fac Was Fac DSF Fac Upp Total 9775 | 72 726 673 780 606 776 669 1081 792 730 312 970 102 115 71 580 720 Wait 875 | . 13 29 61 77 52 12 28 60 95 3 208 . 3 . 180 54 Move 8293 | 64 611 587 603 439 684 655 1034 708 617 306 704 95 110 69 383 624 Hop 2 | . . . . . . . . . . . 2 . . . . . Pick Up 80 | 2 16 1 14 10 13 . 4 3 3 1 4 1 1 1 2 4 Fast Attach 59 | 5 8 1 8 6 3 1 1 1 2 1 11 2 . . 3 6 Attach 43 | . 2 2 5 10 2 . 1 4 4 . 4 . . . 4 5 Detach 12 | . . 1 . 3 1 . . 1 1 1 2 . . . 2 . Swap 47 | . 3 8 9 11 5 . . 5 . . 1 1 . . 2 2 Drop 60 | . 6 2 10 10 12 1 4 1 4 . 3 3 1 1 . 2 Fire 257 | 1 64 23 67 40 2 . 6 7 4 . 31 . . . . 12 Melee 19 | . . . . . 2 . 3 2 . . . . . . 4 8 Ram 3 | . . . . . . . . . . . . . . . . 3 Kick 2 | . 2 . . . . . . . . . . . . . . . Crush 19 | . 1 15 3 . . . . . . . . . . . . . Escape Stasis . | . . . . . . . . . . . . . . . . . Rewire 4 | . . 4 . . . . . . . . . . . . . . Trap . | . . . . . . . . . . . . . . . . . Miscellaneous . | . . . . . . . . . . . . . . . . . Route ------- -11/Scrapyard -10/Materials (discovered 4 exits: *Mat x2 / [*Min x2]) -10/Mines (discovered 2 exits: *Mat x2) -9/Materials (discovered 3 exits: *Mat / *Min / [*Sto]) -8/Materials -7/Factory -7/Lower Caves -7/Lower Caves (discovered 2 exits: *Fac / [*Dat]) -6/Factory -6/Lower Caves -6/Lower Caves -5/Factory (discovered 6 exits: Fac x4 / Upp x2) -5/Waste -5/Factory -5/DSF -4/Factory (discovered 2 exits: [*Res] / *Upp) -4/Upper Caves History --------- Turn | Location | Event 2 | -11/Scrapyard | Met Revision 17 62 | -11/Scrapyard | Discovered new exit (range 8) 80 | -11/Scrapyard | Entered Materials 183 | -10/Materials | Discovered new exit (range 15) 315 | -10/Materials | Build established: Mutant 487 | -10/Materials | Discovered new exit (range 7) 681 | -10/Materials | Discovered new exit (range 14) 779 | -10/Materials | Core integrity fell below 50% 1128 | -10/Materials | Discovered new exit (range 7) 1157 | -10/Materials | Entered Mines 1195 | -10/Mines | A weapon hastily lodged in a ceiling crevice suddenly fell to the ground 1407 | -10/Mines | Found a damaged Exp. Sensor Array with a note attached 1411 | -10/Mines | Found Prototype Device 1411 | -10/Mines | Identified Exp. Sensor Array 1486 | -10/Mines | Discovered new exit (range 15) 1521 | -10/Mines | Assisted by bots powering up and referring to "LRC-V3" 1559 | -10/Mines | Discovered new exit (range 6) 1561 | -10/Mines | Learned location of 1 exit from Materials 1802 | -10/Mines | Learned Materials terminal intel 1823 | -10/Mines | Excavation squad dispatched 1823 | -10/Mines | A large section of the Mines collapsed 2010 | -10/Mines | Core integrity fell below 20% 2244 | -10/Mines | Entered Materials 2244 | -9/Materials | Evolved 2 slots: Propulsion x1, Utility x1 2245 | -9/Materials | Identified exit to Mines 2246 | -9/Materials | Loaded intel: 12 terminal locations 2909 | -9/Materials | Repaired Exp. Sensor Array 2999 | -9/Materials | Lost 3 parts (1n1u1w) 3120 | -9/Materials | Discovered new exit (range 7) 3559 | -9/Materials | Discovered new exit (range 16) 3844 | -9/Materials | First assault squad dispatched 3874 | -9/Materials | Entered another Materials area 3874 | -8/Materials | Evolved 2 slots: Propulsion x1, Utility x1 4442 | -8/Materials | Repaired Cesium-ion Thruster 4479 | -8/Materials | Garrison activated, responded to threat 4494 | -8/Materials | Repaired Cesium-ion Thruster 4511 | -8/Materials | Discovered new exit (range 16) 4527 | -8/Materials | Entered Factory 4527 | -7/Factory | Evolved 2 slots: Propulsion x1, Utility x1 4680 | -7/Factory | Discovered new exit (range 6) 4781 | -7/Factory | Entered Lower Caves 4795 | -7/Lower Caves | Learned location of Extension (-6) 4820 | -7/Lower Caves | Learned Factory emergency access door positions 4863 | -7/Lower Caves | Discovered new exit (range 8) 4865 | -7/Lower Caves | Encountered a Warlord checkpoint 4894 | -7/Lower Caves | Build established: Hacker-Sprinter 4946 | -7/Lower Caves | Entered another Lower Caves area 4954 | -7/Lower Caves | Discovered new exit (range 2) 5082 | -7/Lower Caves | Encountered a Warlord checkpoint 5135 | -7/Lower Caves | Discovered new exit (range 11) 5189 | -7/Lower Caves | Learned location of Zion (-6) 5250 | -7/Lower Caves | Entered Factory 5250 | -6/Factory | Evolved 2 slots: Utility x2 5267 | -6/Factory | Spotted B-75 Beast 5405 | -6/Factory | Lost 3 parts (2n1w) 5411 | -6/Factory | Discovered new exit (range 8) 5434 | -6/Factory | Fabricated Cld. VTOL Module? 5550 | -6/Factory | Entered Lower Caves 5694 | -6/Lower Caves | Encountered a Warlord checkpoint 5802 | -6/Lower Caves | Spotted B-75 Beast 5831 | -6/Lower Caves | Discovered new exit (range 6) 5843 | -6/Lower Caves | Entered another Lower Caves area 5849 | -6/Lower Caves | Discovered new exit (range 15) 5857 | -6/Lower Caves | Identified exit to Factory 5938 | -6/Lower Caves | Entered Factory 5938 | -5/Factory | Evolved 2 slots: Power x1, Utility x1 5977 | -5/Factory | Repaired VTOL Module 5990 | -5/Factory | Identified exit to Factory 6031 | -5/Factory | Repaired Broken Cesium-ion Thruster 6181 | -5/Factory | Identified exit to Upper Caves 6400 | -5/Factory | Lost 12 parts (2p2n3u5w) 6479 | -5/Factory | Sucked down chute 6479 | -5/Factory | Entered Waste 6480 | -5/Waste | Met a frightened Derelict 6484 | -5/Waste | Spotted C-40 Crusher 6494 | -5/Waste | EMP discharged 6494 | -5/Waste | System corruption reached 10% 6501 | -5/Waste | Spotted C-40 Crusher 6502 | -5/Waste | Spotted C-40 Crusher 6517 | -5/Waste | Spotted C-40 Crusher 6518 | -5/Waste | Discovered new exit (range 16) 6524 | -5/Waste | Identified exit to Factory 6525 | -5/Waste | Entered Factory 6574 | -5/Factory | Identified exit to DSF 6574 | -5/Factory | Entered DSF 6580 | -5/DSF | Discovered exit to Factory (range 15) 6601 | -5/DSF | Additional patrols routed to DSF 6604 | -5/DSF | Entered Factory 6604 | -4/Factory | Evolved 2 slots: Utility x2 6632 | -4/Factory | Hacking Suite fried by hacking feedback 6639 | -4/Factory | Build established: Hacker-Mutant 6663 | -4/Factory | Lost 3 parts (1p1u1w) 6677 | -4/Factory | Discovered new exit (range 9) 6952 | -4/Factory | Discovered new exit (range 14) 6966 | -4/Factory | Identified exit to Upper Caves 6967 | -4/Factory | Entered Upper Caves 7035 | -4/Upper Caves | Learned Research interactive machine intel 7142 | -4/Upper Caves | Attracted the attention of an 0b10 checkpoint 7290 | -4/Upper Caves | Spotted B-86 Titan 7466 | -4/Upper Caves | Lost 3 parts (1p2n) 7593 | -4/Upper Caves | Core integrity fell below 50% 7639 | -4/Upper Caves | Lost 5 parts (4u1w) 7642 | -4/Upper Caves | Core integrity fell below 20% 7665 | -4/Upper Caves | Learned Research security intel 7667 | -4/Upper Caves | Destroyed by Y-72 Warden with Railgun Last Messages --------------- 07608_ ECM Suite destroyed. 07608_ Great Maul destroyed. 07608_ Penetrated by Slug. 07608_ Hacking Suite destroyed. 07641_ Slug penetrates Wall. 07654_ Searching scrap... 07654_ Found Matter Compressor. 07654_ Found Mak. Sensor Array. 07654_ Found Mak. Salvage Targeting Computer. 07654_ Found Cloaking Device. 07654_ Found 32 Matter. 07655_ Acquired Cloaking Device. 07657_ Acquired Mak. Sensor Array. 07658_ Hvy. Machine Gun destroyed. 07659_ Slammed into S-27 Virus. 07659_ Mak. Sensor Array destroyed. 07660_ Slammed into S-27 Virus. 07662_ Cloaking Device destroyed. 07665_ Acquired derelict log, extracted data. Data stored: Research security intel. Map ----- +----------------------------------------------------+ | ?????????????????????????????????????????????????? | | ?????????????????????????????????????????????????? | | ?????????????????????????????????????????????????? | | ?????????????????????????????????????????????????? | | ?????????????????????????????????????????????????? | | ?????????????????????????????????????????????????? | | ?????????????????????????????????????????????????? | | ?????????????????????????????????????????????????? | | ?????????????????????????????????????????????????? | | ?????????????????????????????????????????????????? | | ?????????????????????????????????????????????????? | | ?????????????????????????????????????????????????? | | ?????????????????????????????????????????????????? | | ?????????????????????????????????????????????????? | | ?????????????????????????????????????????????????? | | ?????????????????????????????????????????????????? | | ??????????????????????????????#######????????????? | | ??????????????????????????????# !% #?##########?? | | ??????????????????????????????# "!" ### ## ### | | ??????????????????????????????# " " ## # | | ??????????????????????????????# " # | | ???????????#########??????????# "" | | ???????????? ###?????## % | | ?????????????? #????# ## | | ???????????????????# #####s ### | | ????????????????????# @ ##?## | | ????????????????????## ##???## | | ?????????????????????# ##### #?????# | | ?????????????????????# ;##???# #???# | | ??????????????????? ?????## ##???# | | ?????????????????# ## ??????## #????# | | ???????????????????# ???????## ##????# | | ???????????????????# Y ????????#### ##?????#### | | ???????????????????###++#???????????# #?????????# | | ????????????????????????????????????# #?????????# | | ????????????????????????????????????# ?????????? | | ???????????????????????????????????? ?????????? | | ???????????????????????????????????? ###?????????? | | ???????????????????????????????????? ????????????? | | ???????????????????????????????????? ????????????? | | ?????????????????????????????????????????????????? | | ?????????????????????????????????????????????????? | | ?????????????????????????????????????????????????? | | ????????????????????????????????????????????????## | | ???????????????????????????????????????????????## | | ???????????????????????????????????????????????# | | ???????????????????????????????????????????????# | | ???????????????????????????????????????????##??# | | ??????????????????????????????????????????## ### | | ??????????????????????????????????????????# | +----------------------------------------------------+ Best States ------------- Heat Dissipation 43 Energy Generation 31 Energy Capacity 515 Matter Stores 338 Matter Capacity 350 Sight Range 16 Robot Scan Range 20 Terrain Scan Density 10 ECM Strength 1 Jamming Range 12 Cloak Strength 2 Power Amplification 30 Additional Mass Support 9 Corruption Containment 20 Armor Coverage 225 Evasion (%) 73 Targeting Accuracy 10 Armor Integrity Analysis 40 Recoil Reduction 4 Offensive Hacking 40 Defensive Hacking 21 Item Schematics ----------------- Hacking Suite | -9/Materials | Scanalyzed Imp. Assault Rifle | -9/Materials | Scanalyzed Imp. Treads | -9/Materials | Scanalyzed Cesium-ion Thruster | -8/Materials | Scanalyzed Cld. VTOL Module | -6/Factory | Hacked Centrium Wheel | -6/Factory | Hacked Adv. Hacking Suite | -5/Factory | Hacked Adv. System Shield | -5/Factory | Hacked Mic. Fission Core | -5/Factory | Hacked Robot Schematics ------------------ None Fabricated ------------ Cld. VTOL Module | x1 | -6/Factory Alien Tech Used ----------------- None Achievements -------------- Leap Before You Look Maximum Efficiency Challenges ------------ None Game ------ Seed AntigravPhaseFalx Manual? 0 Play Time 02:14:01 Cumulative 29.8 hours Start 2024.04.05 @ 08:45:41 End 2024.04.05 @ 11:08:47 Sessions 1 Manual Loads 0 Difficulty Rogue Special Mode None Game No. 20 Rogue 20 Adventurer 0 Explorer 0 Win Type - Total 0 Types 0/0/0/0/0/0/0/0/0 Lore% 22 Gallery% 23 Achievement% 20 Wizard Run 0 Options --------- Layout 0 ASCII 0 Keyboard 1 Movement Numpad Keybinds 0 Fullscreen 2 Font 24/Smallcaps Map View 76x56 Zoom Use 0% Tactical HUD 1 Map Filters NONE Filters NONE Steam 1 RUN: 2e7ed1e5-ef31-41b7-87fd-e3321958d3f7